bitfinex/quotes_ETHUSD_20250605
["timestamp","ask_amount","ask_price","bid_price","bid_amount"]
[1749142754372,11.72204484,2560.2,2560.1,0.02]
[1749142754730,4.68004484,2560.2,2560.1,0.02]
[1749142755073,0.7741,2560.2,2560.1,0.02]
[1749142755278,7.8161,2560.2,2560.1,0.02]
[1749142756354,11.72204484,2560.2,2560.1,0.02]
[1749142757421,7.8161,2560.2,2560.1,0.02]
[1749142757642,11.72204484,2560.2,2560.1,0.02]
[1749142758579,41.72104484,2560.2,2560.1,0.02]
[1749142759568,51.60318632,2560.2,2560.1,0.02]
[1749142759925,34.68004484,2560.2,2560.1,0.02]
[1749142760125,41.72104484,2560.2,2560.1,0.02]
[1749142760674,50.68004484,2560.2,2560.1,0.02]
[1749142760878,41.72104484,2560.2,2560.1,0.02]
[1749142761175,4.68004484,2560.2,2560.1,0.02]
[1749142761348,11.72104484,2560.2,2560.1,0.02]
[1749142761738,0.7741,2560.2,2560.1,0.02]
[1749142761965,4.68004484,2560.2,2560.1,0.02]
[1749142762163,11.72004484,2560.2,2560.1,0.02]
[1749142762739,4.68004484,2560.2,2560.1,0.02]
[1749142762944,11.72004484,2560.2,2560.1,0.02]
[1749142765275,41.72004484,2560.2,2560.1,0.02]
[1749142766670,0.7741,2560.2,2560.1,0.02]
[1749142766869,3.90594484,2560.2,2560.1,0.02]
[1749142767094,7.038,2560.2,2560.1,0.02]
[1749142767773,10.94394484,2560.2,2560.1,0.02]
[1749142767987,41.70124484,2560.2,2560.1,0.02]
[1749142768709,11.70024484,2560.2,2560.1,0.02]
[1749142769470,0.7573,2560.2,2560.1,0.02]
[1749142769702,33.90592817,2560.3,2560.1,0.02]
[1749142769908,7.037,2560.2,2560.1,0.02]
[1749142770601,10.94194484,2560.2,2560.1,0.02]
[1749142771705,40.94194484,2560.2,2560.1,0.02]
[1749142772406,41.70754484,2560.2,2560.1,0.02]
[1749142772706,58.07236545,2560.2,2560.1,0.02]
[1749142775900,58.07236545,2560.2,2559.1,0.02]
[1749142775901,3.90747108,2559.2,2559.1,0.02]
[1749142776096,7.034,2559.2,2559.1,0.02]
[1749142776296,0.7747,2559.6,2559.1,0.30627]
[1749142776469,0.7747,2559.6,2559.1,4.21381595]
[1749142776675,7.034,2559.5,2559.1,0.30627]
[1749142776874,7.034,2559.5,2559.1,4.21380148]
[1749142777070,7.034,2559.5,2559.1,0.30627]
[1749142777377,30.0,2559.3,2559.1,0.02]
[1749142777595,10.94110249,2559.5,2559.1,0.02]
[1749142777874,3.90728506,2559.4,2559.1,0.02]
[1749142778083,7.034,2559.5,2559.1,0.02]
[1749142778296,3.90729096,2559.4,2559.1,0.02]
[1749142778503,3.90716574,2559.4,2559.1,0.02]
[1749142778708,3.9073184,2559.3,2559.1,0.02]
[1749142779076,3.90747108,2559.2,2559.1,0.02]
[1749142779408,7.033,2559.2,2559.1,0.02]
[1749142779575,41.30727144,2559.2,2559.1,0.02]
[1749142780810,37.39980036,2559.2,2559.1,0.02]
[1749142781330,7.032,2559.2,2559.1,0.02]
[1749142781682,10.93947108,2559.2,2559.1,0.02]
[1749142781887,11.30649098,2559.2,2559.1,0.02]
[1749142782217,7.3990199,2559.2,2559.1,0.02]
[1749142783123,7.032,2559.2,2559.1,0.02]
[1749142783482,7.031,2559.2,2559.1,0.02]
[1749142783884,0.36685062,2559.4,2559.1,0.02]
[1749142784089,7.031,2559.3,2559.1,0.02]
[1749142784696,7.031,2559.2,2559.1,3.9275432]
[1749142784901,7.031,2559.2,2559.1,0.02]
[1749142785627,10.93847108,2559.2,2559.1,0.02]
[1749142785816,7.39806595,2559.2,2559.1,0.02]
[1749142785988,0.36706595,2559.2,2559.1,0.02]
[1749142786189,7.03,2559.2,2559.1,0.02]
[1749142787145,11.30459761,2559.2,2559.1,0.02]
[1749142787500,7.03,2559.2,2559.1,0.02]
[1749142787817,10.93747108,2559.2,2559.1,0.02]
[1749142787995,0.3669926,2559.5,2559.1,0.02]
[1749142788331,3.90740726,2559.3,2559.1,0.02]
[1749142788714,0.36701382,2559.3,2559.1,0.02]
[1749142788917,3.90747108,2559.2,2559.1,0.02]
[1749142789128,0.36701382,2559.3,2559.1,0.02]
[1749142789129,30.0,2559.3,2559.1,0.02]
[1749142789333,7.029,2559.4,2559.1,0.02]
[1749142789533,10.0,2559.6,2559.1,3.92760786]
[1749142789701,0.36711819,2559.5,2559.1,0.02]
[1749142789891,7.028,2559.4,2559.1,3.92754063]
[1749142790483,7.028,2559.4,2559.1,0.02]
[1749142790773,10.93518747,2559.4,2559.1,0.02]
[1749142790915,7.028,2559.4,2559.1,0.02]
[1749142791530,4.27416633,2559.6,2559.1,0.02]
[1749142791855,7.027,2559.5,2559.1,0.02]
[1749142792253,40.0,2559.4,2559.1,0.02]
[1749142792425,30.0,2559.4,2559.1,0.02]
[1749142792625,30.0,2559.8,2559.3,1.3114]
[1749142792825,7.027,2559.7,2559.3,1.3114]
[1749142793572,30.0,2559.5,2559.1,0.02]
[1749142793710,30.0,2559.4,2559.1,0.02]
[1749142793916,7.026,2559.3,2559.1,0.02]
[1749142794211,0.36734066,2559.8,2559.2,20.45738886]
[1749142794367,7.026,2559.7,2559.2,20.45738886]
[1749142794659,7.026,2559.6,2559.3,3.90720167]
[1749142794824,0.21485331,2559.9,2559.3,0.55]
[1749142795156,7.026,2559.8,2559.4,16.0]
[1749142795345,30.0,2559.7,2559.3,0.55]
[1749142795916,33.90671159,2559.7,2559.3,0.55]
[1749142796120,30.0,2559.7,2559.3,0.55]
[1749142796519,30.0,2559.7,2559.3,16.55]
[1749142796722,30.0,2559.7,2559.3,0.55]
[1749142797122,30.0,2559.7,2559.4,16.0]
[1749142797318,30.0,2559.7,2559.3,0.55]
[1749142797627,17.026,2559.8,2559.3,16.55]
[1749142797941,10.93264308,2559.8,2559.3,16.55]
[1749142798143,30.0,2559.7,2559.3,0.55]
[1749142799862,10.94902363,2559.9,2559.3,0.55]
[1749142799863,7.022,2559.6,2559.3,0.55]
[1749142800051,7.022,2559.5,2559.4,16.0]
[1749142800235,7.41030305,2559.9,2559.4,3.90091672]
[1749142800440,7.022,2559.8,2559.6,0.55]
[1749142800649,7.022,2559.7,2559.6,2.593]
[1749142800854,7.04255331,2559.9,2559.6,2.593]
[1749142801038,7.022,2559.8,2559.6,2.593]
[1749142801237,7.022,2559.8,2559.6,2.043]
[1749142801461,3.90681811,2559.7,2559.5,2.043]
[1749142801877,3.90686044,2559.6,2559.5,2.593]
[1749142802061,12.08383091,2559.8,2559.1,0.02]
[1749142802062,40.0,2559.4,2559.1,0.02]
[1749142802236,7.021,2559.3,2559.1,0.02]
[1749142802438,3.90747108,2559.2,2559.1,0.02]
[1749142802637,33.90747108,2559.2,2559.1,0.02]
[1749142802866,34.27541187,2559.2,2559.1,0.02]
[1749142803175,0.7914,2559.8,2559.3,0.55]
[1749142803379,7.38799098,2559.7,2559.3,0.55]
[1749142803581,14.27475537,2559.7,2559.2,0.55]
[1749142803751,7.02,2559.6,2559.1,0.02]
[1749142804077,7.04255331,2559.9,2559.5,0.55]
[1749142804282,7.04255331,2559.9,2559.6,0.55]
[1749142804435,7.04255331,2559.9,2559.8,5.28305519]
[1749142804947,7.04255331,2559.9,2559.8,21.28305519]
[1749142805369,7.04255331,2559.9,2559.8,21.64011376]
[1749142805592,7.04255331,2559.9,2559.8,17.3765]
[1749142805903,7.04255331,2559.9,2559.8,0.55]
[1749142806104,7.04255331,2559.9,2559.6,16.0]
[1749142806263,7.019,2559.8,2559.5,2.043]
[1749142806700,7.019,2559.8,2559.6,0.55]
[1749142807001,30.0,2559.7,2559.5,2.043]
[1749142807296,33.906756,2559.7,2559.5,2.043]
[1749142807498,30.0,2559.7,2559.0,0.7735]
[1749142807698,7.019,2559.8,2559.2,3.90744265]
[1749142807699,30.0,2559.8,2559.2,3.90744265]
[1749142807899,7.018,2559.6,2559.3,0.7735]
[1749142808202,33.90705793,2559.5,2559.3,2.043]
[1749142808409,7.83505331,2559.9,2559.4,3.90713183]
[1749142808568,7.018,2559.8,2559.4,0.55]
[1749142809076,7.018,2559.8,2559.3,2.043]
[1749142809265,30.0,2559.5,2559.3,2.043]
[1749142809459,7.017,2559.4,2559.3,2.043]
[1749142809662,7.017,2559.4,2559.3,2.593]
[1749142810311,8.20271461,2559.9,2559.4,0.55]
[1749142810492,7.017,2559.8,2559.6,0.55]
[1749142810693,7.04255331,2559.9,2559.6,0.55]
[1749142810694,7.017,2559.7,2559.6,0.55]
[1749142810882,7.04255331,2559.9,2559.4,16.0]
[1749142811082,7.017,2559.7,2559.5,0.55]
[1749142811388,7.016,2559.6,2559.5,4.45701308]
[1749142811589,7.016,2559.6,2559.5,0.55]
[1749142811792,7.04255331,2559.9,2559.5,18.41873009]
[1749142811992,7.04255331,2559.9,2559.8,0.55]
[1749142812173,14.05855331,2559.9,2559.8,0.55]
[1749142812376,14.05855331,2559.9,2559.5,0.55]
[1749142812590,14.05855331,2559.9,2559.6,3.90677876]
[1749142812775,14.05855331,2559.9,2559.8,0.55]
[1749142813014,14.05855331,2559.9,2559.8,1.3584]
[1749142813220,14.05855331,2559.9,2559.3,0.8084]
[1749142813408,30.0,2559.8,2559.4,0.55]
[1749142813610,14.05855331,2559.9,2559.4,0.55]
[1749142813920,7.015,2559.8,2559.6,4.45684207]
[1749142814123,7.015,2559.8,2559.6,0.55]
[1749142814422,7.015,2559.7,2559.6,4.45686044]
[1749142814621,7.015,2559.7,2559.6,0.55]
[1749142814826,7.015,2559.7,2559.6,4.45686044]
[1749142815122,7.04255331,2559.9,2559.8,0.55]
[1749142815528,7.04255331,2559.9,2559.8,20.45655519]
[1749142815828,7.04255331,2559.9,2559.8,21.28005519]
[1749142816433,7.04255331,2559.9,2559.8,23.32305519]
[1749142816760,7.04255331,2559.9,2559.8,23.68011376]
[1749142816903,7.04255331,2559.9,2559.8,26.47813167]
[1749142818302,7.04255331,2559.9,2559.8,23.68011376]
[1749142818503,7.04255331,2559.9,2559.8,19.4165]
[1749142818710,7.04255331,2559.9,2559.8,22.77305519]
[1749142819259,7.04255331,2559.9,2559.8,23.32305519]
[1749142819545,7.04255331,2559.9,2559.8,18.8665]
[1749142819742,7.04255331,2559.9,2559.8,16.8235]
[1749142819942,7.04255331,2559.9,2559.8,18.8665]
[1749142820238,7.04255331,2559.9,2559.8,18.043]
[1749142820450,7.04255331,2559.9,2559.8,2.043]
[1749142820881,7.04255331,2559.9,2559.8,6.71585519]
[1749142821168,7.04255331,2559.9,2559.8,25.57565384]
[1749142822171,6.99045331,2559.9,2559.8,25.56565384]
[1749142822737,6.73575331,2559.9,2559.8,25.56565384]
[1749142822938,6.73575331,2559.9,2559.8,23.25585519]
[1749142823533,6.73575331,2559.9,2559.8,22.48955519]
[1749142823959,6.73575331,2559.9,2559.8,21.93955519]
[1749142824345,6.73575331,2559.9,2559.8,23.30865519]
[1749142828510,6.73575331,2559.9,2559.8,19.4021]
[1749142828688,6.73575331,2559.9,2559.8,22.48955519]
[1749142829013,6.73575331,2559.9,2559.8,2.033]
[1749142829656,6.73575331,2559.9,2559.1,0.02]
[1749142829860,40.7723,2559.6,2559.1,0.02]
[1749142830094,0.7723,2559.3,2559.1,0.02]
[1749142830294,7.006,2559.2,2559.1,0.02]
[1749142830452,7.005,2559.2,2559.1,0.02]
[1749142830883,7.005,2559.2,2559.1,2.053]
[1749142832107,7.005,2559.2,2559.1,2.603]
[1749142833011,0.8233,2559.6,2559.2,0.55]
[1749142833175,7.005,2559.5,2559.2,0.55]
[1749142833654,0.8233,2559.6,2559.4,0.55]
[1749142834027,0.796,2560.3,2559.8,0.55]
[1749142834159,0.796,2560.3,2559.8,2.583]
[1749142834160,13.74075331,2559.9,2559.8,2.583]
[1749142835160,30.0,2559.8,2559.3,3.90717653]
[1749142835475,0.7704,2560.1,2559.5,0.55]
[1749142835679,7.004,2560.0,2559.9,0.55]
[1749142836054,7.004,2560.0,2559.8,0.55]
[1749142836259,7.004,2560.0,2559.7,4.45664322]
[1749142836796,7.004,2560.0,2559.8,0.55]
[1749142837756,7.004,2560.0,2559.7,0.55]
[1749142838379,0.7704,2560.1,2559.7,20.45663862]
[1749142838581,7.003,2560.0,2559.7,8.35761389]
[1749142838757,30.0,2560.3,2559.8,0.55]
[1749142838958,40.0,2560.9,2560.0,0.55]
[1749142839295,30.0,2560.7,2560.2,0.55]
[1749142839498,30.0,2560.9,2560.4,4.45562817]
[1749142839694,7.003,2560.8,2560.6,0.55]
[1749142839908,0.7741,2561.0,2560.6,0.55]
[1749142840105,0.7741,2561.0,2560.7,3.90518217]
[1749142840106,7.002,2560.9,2560.7,3.90518217]
[1749142840306,7.002,2560.9,2560.8,2.033]
[1749142840861,10.0,2560.8,2560.6,0.55]
[1749142841114,30.0,2560.8,2560.7,2.583]
[1749142841264,30.0,2560.8,2560.7,2.033]
[1749142842113,34.68622967,2560.8,2560.7,2.033]
[1749142842581,30.0,2560.5,2560.2,2.033]
[1749142842784,7.0,2560.4,2560.2,2.033]
[1749142843099,0.8032,2560.6,2560.3,4.45571905]
[1749142843284,7.0,2560.4,2560.3,4.45572173]
[1749142843599,7.0,2560.4,2560.3,0.55]
[1749142843757,7.0,2560.4,2560.3,4.45579228]
[1749142844285,0.8183,2561.1,2560.8,3.90502064]
[1749142844486,0.8183,2561.1,2560.8,3.90493144]
[1749142844819,30.0,2561.2,2561.0,0.55]
[1749142845105,30.0,2561.2,2560.8,2.033]
[1749142845106,6.999,2561.1,2560.8,2.033]
[1749142845288,30.0,2560.9,2560.8,2.033]
[1749142845664,34.67247719,2560.9,2560.8,2.033]
[1749142845877,30.7676,2560.9,2560.8,2.033]
[1749142846172,37.7666,2560.9,2560.8,2.033]
[1749142847364,30.7676,2560.9,2560.8,2.033]
[1749142847566,37.7656,2560.9,2560.8,2.033]
[1749142847786,30.7676,2560.9,2560.8,2.033]
[1749142847987,30.0,2561.1,2560.8,5.93802967]
[1749142848187,6.998,2561.0,2560.8,2.033]
[1749142848463,3.90367259,2561.7,2561.1,0.55]
[1749142848464,30.0,2561.3,2561.1,0.55]
[1749142848684,0.7753,2561.4,2561.1,4.45443794]
[1749142848885,6.997,2561.3,2561.1,0.55]
[1749142849163,6.997,2561.3,2561.1,4.45454131]
[1749142849368,6.997,2561.2,2561.0,0.55]
[1749142849586,0.7753,2561.6,2561.2,0.55]
[1749142849793,10.0,2561.7,2561.3,3.90418178]
[1749142849794,6.997,2561.5,2561.3,3.90418178]
[1749142849975,6.996,2561.4,2561.3,0.55]
[1749142850177,0.7674,2561.8,2561.5,3.90382795]
[1749142850405,30.0,2561.7,2561.5,2.025]
[1749142850565,0.02,2561.9,2561.5,5.92888132]
[1749142850775,0.02,2561.9,2561.8,3.90350534]
[1749142851095,0.02,2561.9,2561.8,5.70265587]
[1749142851297,0.02,2561.9,2561.8,21.70265587]
[1749142852815,0.02,2561.9,2561.8,22.11559078]
[1749142852999,0.02,2561.9,2561.8,24.13959078]
[1749142853317,0.02,2561.9,2561.8,39.41645295]
[1749142853701,0.02,2562.9,2562.8,5.2687822]
[1749142854010,0.02,2562.9,2562.8,8.20987219]
[1749142854196,0.02,2562.9,2562.8,4.30788999]
[1749142854456,0.02,2562.9,2562.8,2.574]
[1749142854588,0.02,2562.9,2562.8,2.024]
[1749142855512,37.013,2562.9,2562.4,18.024]
[1749142855825,30.0,2562.6,2562.4,2.024]
[1749142855989,0.02,2562.9,2562.4,2.024]
[1749142856173,6.991,2562.8,2562.5,0.55]
[1749142856370,6.991,2562.7,2562.5,0.55]
[1749142856569,0.02,2562.9,2562.5,0.55]
[1749142856797,6.991,2562.8,2562.7,0.55]
[1749142856995,6.99,2562.8,2562.7,0.55]
[1749142857183,0.02,2562.9,2562.8,0.55]
[1749142857575,0.02,2562.9,2562.8,4.4519822]
[1749142857913,0.02,2562.9,2562.8,5.2199822]
[1749142858114,0.02,2562.9,2562.8,7.2439822]
[1749142858890,0.02,2562.9,2562.8,23.2439822]
[1749142859222,0.02,2562.9,2562.8,25.95859249]
[1749142859430,0.02,2562.9,2562.8,23.2439822]
[1749142859625,0.02,2562.9,2562.8,0.55]
[1749142859811,7.009,2562.9,2562.8,0.55]
[1749142860011,7.009,2562.9,2562.7,2.024]
[1749142860595,40.0,2562.8,2562.7,2.024]
[1749142860790,0.02,2562.9,2562.7,2.024]
[1749142861026,0.02,2562.9,2562.8,20.4519822]
[1749142861224,0.02,2562.9,2562.8,21.2423822]
[1749142861492,0.02,2562.9,2562.8,23.2663822]
[1749142862794,0.02,2562.9,2562.8,31.96317928]
[1749142862996,7.006,2563.9,2563.8,4.45046025]
[1749142863306,0.02,2563.9,2563.8,2.573]
[1749142863504,7.006,2563.9,2563.8,2.573]
[1749142863707,0.02,2563.9,2563.8,6.47346025]
[1749142863902,0.02,2563.9,2563.8,23.51086556]
[1749142864104,0.02,2563.9,2563.8,19.61040531]
[1749142864303,0.02,2563.9,2563.8,22.47346025]
[1749142864716,0.02,2563.9,2563.8,18.573]
[1749142864920,7.004,2563.9,2563.8,22.47346025]
[1749142865105,7.004,2563.9,2563.8,18.573]
[1749142865307,0.02,2563.9,2563.8,22.47346025]
[1749142865512,0.02,2563.9,2563.8,25.11086722]
[1749142866621,0.02,2563.9,2563.8,16.55]
[1749142866823,30.0,2563.8,2563.1,8.429]
[1749142867025,30.0,2563.8,2563.1,10.452]
[1749142867211,12.61714917,2563.9,2563.1,10.452]
[1749142867212,30.0,2563.5,2563.1,10.452]
[1749142867411,0.7643,2563.6,2562.6,0.7578]
[1749142867412,30.0,2563.2,2562.7,2.023]
[1749142867658,40.0,2563.0,2562.7,2.023]
[1749142867945,8.69679708,2563.3,2562.7,2.023]
[1749142867946,7.7685,2562.9,2562.7,2.023]
[1749142868101,7.34064566,2562.8,2562.7,2.023]
[1749142868302,30.0,2562.7,2562.1,2.023]
[1749142868531,0.35860918,2562.6,2562.2,3.90289594]
[1749142868854,6.982,2562.6,2562.4,3.90259077]
[1749142869000,6.982,2562.6,2562.2,3.90289594]
[1749142869001,6.982,2562.6,2562.2,16.0]
[1749142869201,6.982,2562.6,2562.4,3.90256801]
[1749142869402,6.982,2562.6,2562.3,3.90273238]
[1749142869635,6.982,2562.6,2562.1,2.023]
[1749142870045,30.0,2562.5,2562.1,18.023]
[1749142870245,30.0,2562.5,2562.1,2.023]
[1749142870449,0.761,2562.4,2562.1,2.023]
[1749142870649,36.981,2562.3,2562.1,2.023]
[1749142870804,6.981,2562.3,2562.1,2.023]
[1749142871341,30.0,2562.3,2562.1,2.023]
[1749142871514,6.981,2562.2,2562.1,2.023]
[1749142871718,40.88389594,2562.2,2562.1,2.023]
[1749142871930,30.0,2562.1,2561.5,3.90384544]
[1749142872148,30.0,2562.0,2561.4,2.023]
[1749142872308,30.0,2561.7,2561.4,2.023]
[1749142872512,6.981,2561.6,2561.4,2.023]
[1749142873609,0.7941,2561.9,2561.4,2.023]
[1749142873804,30.0,2561.8,2561.7,3.90365772]
[1749142874117,30.0,2562.1,2561.8,0.55]
[1749142874475,6.981,2562.0,2561.6,0.55]
[1749142874619,30.0,2561.9,2561.4,2.023]
[1749142874956,0.8304,2562.2,2561.4,2.023]
[1749142874957,6.981,2561.8,2561.5,0.55]
[1749142875168,6.981,2561.8,2561.5,16.55]
[1749142875319,6.981,2561.8,2561.5,2.1033243]
[1749142875512,10.0,2562.0,2561.5,0.55]
[1749142875712,6.981,2561.9,2561.5,0.55]
[1749142876032,40.0,2561.6,2561.4,2.023]
[1749142876248,6.981,2561.5,2561.4,2.023]
[1749142877110,30.0,2561.9,2561.5,4.45385079]
[1749142877308,6.981,2561.8,2561.5,0.55]
[1749142877541,6.981,2561.8,2561.4,2.023]
[1749142878149,30.0,2561.7,2561.4,2.023]
[1749142878348,0.7699,2562.0,2561.5,3.90388971]
[1749142878549,0.7856,2562.3,2561.9,3.90327504]
[1749142878753,0.7856,2562.3,2561.6,0.55]
[1749142878754,0.7856,2562.3,2561.7,16.0]
[1749142879064,0.35807603,2562.8,2561.7,16.0]
[1749142879065,6.98,2562.2,2562.0,0.55]
[1749142879212,4.68775253,2562.7,2562.1,2.023]
[1749142879213,30.0,2562.5,2562.1,2.023]
[1749142879410,1.15215966,2562.7,2562.1,2.023]
[1749142879411,40.0,2562.3,2562.1,2.023]
[1749142879650,30.0,2562.6,2562.1,2.023]
[1749142879951,6.98,2562.5,2562.1,2.023]
[1749142880149,6.98,2562.5,2562.1,5.92596595]
[1749142880513,6.98,2562.4,2562.3,3.90274362]
[1749142880746,30.0,2562.9,2562.6,3.90228674]
[1749142880943,30.0,2563.0,2562.8,0.55]
[1749142881272,0.7757,2563.1,2562.7,2.016]
[1749142881273,6.979,2562.9,2562.7,2.016]
[1749142881577,6.929,2562.9,2562.7,2.016]
[1749142882082,6.929,2562.9,2562.5,3.90234045]
[1749142882083,30.0,2562.8,2562.5,3.90234045]
[1749142882376,0.7757,2563.1,2562.6,0.55]
[1749142882580,30.0,2563.4,2563.0,0.55]
[1749142882885,43.90139472,2563.2,2562.6,2.016]
[1749142883056,30.0,2563.0,2562.4,2.566]
[1749142883260,30.0,2562.8,2562.4,2.566]
[1749142883455,30.0,2562.8,2562.4,2.016]
[1749142883671,30.0,2562.9,2562.7,3.90205984]
[1749142883884,6.978,2562.8,2562.7,3.9020313]
[1749142884345,30.0,2563.2,2562.8,3.90194254]
[1749142884545,6.978,2563.1,2562.7,4.45210289]
[1749142884981,8.69679708,2562.9,2562.3,8.43]
[1749142885280,30.0,2562.7,2562.4,2.016]
[1749142885481,40.0,2562.5,2562.4,2.016]
[1749142885642,30.0,2562.5,2562.4,2.016]
[1749142886174,31.14982989,2562.5,2562.4,2.016]
[1749142886682,0.7832,2562.5,2562.4,2.016]
[1749142886879,30.7832,2562.5,2562.4,2.016]
[1749142887083,0.7832,2562.5,2562.4,2.016]
[1749142887876,6.977,2562.5,2562.4,2.016]
[1749142888079,36.977,2562.5,2562.4,2.016]
[1749142888283,6.977,2562.5,2562.4,2.016]
[1749142888605,30.0,2562.7,2562.5,4.45232385]
[1749142888892,6.976,2562.6,2562.5,4.4523579]
[1749142889089,0.7609,2563.1,2562.8,3.90185012]
[1749142889292,6.976,2563.0,2562.5,19.90239516]
[1749142889522,30.0,2562.9,2562.6,0.55]
[1749142889789,6.976,2563.0,2562.7,3.90211057]
[1749142889976,6.976,2563.0,2562.7,3.90213446]
[1749142890183,0.8259,2563.4,2562.7,3.90213446]
[1749142890184,30.0,2563.3,2562.9,3.90172661]
[1749142890355,6.976,2563.2,2563.0,2.016]
[1749142890760,0.8259,2563.4,2563.1,3.90145016]
[1749142891087,0.62949809,2563.9,2563.3,0.55]
[1749142891088,30.0,2563.8,2563.3,0.55]
[1749142891288,0.02,2563.9,2563.3,0.55]
[1749142891495,30.0,2563.7,2563.4,3.9009723]
[1749142891791,16.975,2563.8,2563.2,0.7531]
[1749142891989,16.975,2563.8,2563.4,0.55]
[1749142892190,16.975,2563.8,2563.4,4.45106626]
[1749142892408,10.0,2563.8,2563.4,4.45103775]
[1749142892549,6.974,2563.7,2563.4,4.97145152]
[1749142892749,6.974,2563.7,2563.4,0.55]
[1749142892950,6.974,2563.7,2563.5,3.90091671]
[1749142893151,6.974,2563.7,2563.6,6.46676454]
[1749142893592,6.974,2563.7,2563.6,2.016]
[1749142893967,6.974,2563.7,2563.4,0.39527295]
[1749142894172,30.0,2563.6,2563.5,2.016]
[1749142894360,30.0,2563.6,2563.3,2.016]
[1749142894957,30.0,2563.8,2563.4,0.55]
[1749142895158,6.973,2563.5,2563.3,2.016]
[1749142895389,10.02,2563.9,2563.4,0.55]
[1749142895598,38.69679708,2563.7,2563.3,2.016]
[1749142895794,40.0,2563.5,2563.3,2.016]
[1749142895994,6.972,2563.4,2563.3,2.016]
[1749142896400,0.36706407,2563.8,2563.6,3.90066317]
[1749142896603,6.972,2563.7,2563.4,0.93621302]
[1749142896777,6.972,2563.7,2563.6,4.45076454]
[1749142896972,6.972,2563.7,2563.5,0.55]
[1749142897165,6.972,2563.7,2563.3,3.39935077]
[1749142897166,6.972,2563.7,2563.3,0.7916]
[1749142897366,0.7707,2563.9,2563.5,3.9008284]
[1749142897566,30.0,2563.7,2563.4,6.46599677]
[1749142897766,6.972,2563.8,2563.4,6.46599677]
[1749142897994,6.972,2563.8,2563.3,0.7916]
[1749142897995,6.972,2563.8,2563.5,2.015]
[1749142898207,30.0,2563.6,2563.5,2.015]
[1749142898392,30.0,2563.7,2563.5,2.015]
[1749142899662,0.7707,2563.9,2563.5,2.015]
[1749142899862,6.97,2563.8,2563.5,2.015]
[1749142900100,0.02,2563.9,2563.6,0.55]
[1749142900285,0.02,2563.9,2563.6,4.45074359]
[1749142900461,0.02,2563.9,2563.7,0.55]
[1749142900664,0.02,2563.9,2563.8,4.45046025]
[1749142901293,0.02,2563.9,2563.8,6.46546025]
[1749142901689,0.02,2563.9,2563.8,23.26736025]
[1749142901894,0.02,2563.9,2563.8,2.015]
[1749142902491,30.02,2563.9,2563.8,2.015]
[1749142902781,6.989,2563.9,2563.8,2.015]
[1749142903107,6.989,2563.9,2563.8,2.565]
[1749142903475,0.02,2563.9,2563.8,2.565]
[1749142903733,6.989,2563.9,2563.8,6.46546025]
[1749142903879,0.02,2563.9,2563.8,6.46546025]
[1749142904295,0.02,2563.9,2563.8,23.58050552]
[1749142906519,0.02,2563.9,2563.8,16.55]
[1749142906723,0.02,2563.9,2563.8,18.565]
[1749142907616,0.02,2563.9,2563.8,2.015]
[1749142909122,3.92030812,2563.9,2563.8,2.015]
[1749142909427,33.92030812,2563.9,2563.8,2.015]
[1749142909717,34.72680812,2563.9,2563.8,2.015]
[1749142909877,30.8265,2563.9,2563.8,2.015]
[1749142910535,34.72680812,2563.9,2563.8,2.015]
[1749142912083,30.8265,2563.9,2563.8,2.015]
[1749142912730,0.02,2563.9,2563.8,2.015]
[1749142913091,0.02,2563.9,2563.8,22.66696025]
[1749142913481,0.02,2563.9,2563.8,16.7515]
[1749142913737,3.90046025,2563.8,2562.0,3.90310809]
[1749142913894,30.0,2563.6,2562.4,0.7525]
[1749142914094,6.964,2563.5,2563.0,0.55]
[1749142914383,6.964,2563.5,2563.3,0.55]
[1749142914660,6.964,2563.5,2563.2,0.55]
[1749142914791,6.964,2563.5,2563.1,2.008]
[1749142915200,10.86499166,2563.5,2563.1,2.008]
[1749142915387,6.964,2563.5,2563.1,2.008]
[1749142915587,10.86494349,2563.5,2563.1,2.008]
[1749142915983,10.86497914,2563.5,2563.1,2.008]
[1749142916223,3.90164176,2563.1,2562.9,2.008]
[1749142916424,7.32417208,2563.0,2562.9,2.008]
[1749142916723,37.32414493,2563.0,2562.9,2.008]
[1749142916895,36.964,2563.0,2562.9,2.008]
[1749142917082,7.32414956,2563.0,2562.9,2.008]
[1749142917287,0.7893,2563.4,2563.0,0.55]
[1749142917511,16.964,2563.3,2563.0,0.55]
[1749142917710,0.7203161,2563.2,2563.0,0.55]
[1749142918028,0.36015731,2563.2,2563.0,0.55]
[1749142918190,30.0,2563.1,2562.7,0.55]
[1749142918409,30.0,2563.2,2562.8,2.008]